bitfinex-derivatives/quotes_BNBF0:USTF0_20250417
["timestamp","ask_amount","ask_price","bid_price","bid_amount"]
[1744895693432,0.30420011,588.69,587.73,0.562]
[1744895696533,0.552,588.7,587.73,0.562]
[1744895696731,0.30420196,588.69,587.73,0.562]
[1744895698135,0.552,588.7,587.73,0.562]
[1744895698435,0.304203,588.69,587.73,0.562]
[1744895701033,0.304203,588.69,587.74,0.535]
[1744895702637,0.30420236,588.68,587.74,0.535]
[1744895702836,0.30420236,588.69,587.74,0.535]
[1744895703032,0.30420236,588.68,587.74,0.535]
[1744895703233,0.30420236,588.69,587.74,0.535]
[1744895704133,0.552,588.7,587.74,0.535]
[1744895704332,0.30419849,588.69,587.74,0.535]
[1744895707339,0.30419849,588.71,587.74,0.535]
[1744895707635,0.30420615,588.7,587.74,0.535]
[1744895707840,0.30420615,588.71,587.74,0.535]
[1744895708537,0.33973161,588.7,587.74,0.535]
[1744895708736,0.30426906,588.69,587.74,0.535]
[1744895708934,0.33974315,588.68,587.74,0.535]
[1744895709139,0.30426906,588.67,587.74,0.535]
[1744895709338,0.33975469,588.66,587.74,0.535]
[1744895709536,0.30426906,588.65,587.74,0.535]
[1744895709736,0.33976624,588.64,587.74,0.535]
[1744895709938,0.30426906,588.63,587.74,0.535]
[1744895710241,0.33977778,588.62,587.74,0.535]
[1744895710438,0.30426906,588.61,587.74,0.535]
[1744895710634,0.33978933,588.6,587.74,0.535]
[1744895713040,0.63575677,588.6,587.74,0.535]
[1744895713740,0.30427285,588.59,587.74,0.535]
[1744895714041,0.33980087,588.58,587.74,0.535]
[1744895716042,0.30427358,588.57,587.74,0.535]
[1744895716942,0.30427358,588.57,587.75,0.441]
[1744895717337,0.33980087,588.58,587.75,0.441]
[1744895717538,0.30427388,588.57,587.75,0.441]
[1744895720640,0.33980087,588.58,587.75,0.441]
[1744895720840,0.30425776,588.57,587.75,0.441]
[1744895723950,0.33980087,588.58,587.75,0.441]
[1744895724150,0.30425585,588.57,587.75,0.441]
[1744895727150,0.33980087,588.58,587.75,0.441]
[1744895727350,0.30425801,588.57,587.75,0.441]
[1744895728853,0.33980087,588.58,587.75,0.441]
[1744895729051,0.30425944,588.57,587.75,0.441]
[1744895730451,0.33980087,588.58,587.75,0.441]
[1744895730647,0.30426041,588.57,587.75,0.441]
[1744895732050,0.30426041,588.57,587.76,0.555]
[1744895732854,0.77526041,588.57,587.76,0.555]
[1744895733154,0.30426041,588.56,587.76,0.555]
[1744895735356,0.471,588.57,587.76,0.555]
[1744895735554,0.30426159,588.56,587.76,0.555]
[1744895737161,0.30426159,588.56,587.77,0.63]
[1744895738461,0.33981819,588.55,587.77,0.63]
[1744895738759,0.30430406,588.54,587.77,0.63]
[1744895740160,0.33981819,588.55,587.77,0.63]
[1744895740361,0.30430851,588.54,587.77,0.63]
[1744895741662,0.33982974,588.53,587.77,0.63]
[1744895741961,0.30430851,588.52,587.77,0.63]
[1744895742162,0.33984129,588.51,587.77,0.63]
[1744895742359,0.30430851,588.5,587.77,0.63]
[1744895743357,0.33984129,588.51,587.77,0.63]
[1744895743559,0.30431899,588.5,587.77,0.63]
[1744895744964,0.33984129,588.51,587.77,0.63]
[1744895745159,0.30431924,588.5,587.77,0.63]
[1744895749966,0.30433021,588.49,587.77,0.63]
[1744895750165,0.30433021,588.5,587.77,0.63]
[1744895750466,0.30433021,588.49,587.77,0.63]
[1744895750659,0.30433021,588.5,587.77,0.63]
[1744895750862,0.30433021,588.49,587.77,0.63]
[1744895751060,0.30433021,588.5,587.77,0.63]
[1744895751266,0.30433021,588.49,587.77,0.63]
[1744895751566,0.30433021,588.5,587.77,0.63]
[1744895751768,0.30433021,588.49,587.77,0.63]
[1744895752061,0.30433021,588.48,587.77,0.63]
[1744895752266,0.30433021,588.5,587.77,0.63]
[1744895759488,0.48,588.49,587.77,0.63]
[1744895759683,0.3043191,588.48,587.77,0.63]
[1744895763687,0.3043191,588.48,587.77,1.206]
[1744895765785,0.30432736,588.47,587.77,1.206]
[1744895765990,0.30432736,588.48,587.77,1.206]
[1744895766183,0.30432736,588.47,587.77,1.206]
[1744895766388,0.30432736,588.48,587.77,1.206]
[1744895766585,0.30432736,588.47,587.77,1.206]
[1744895766785,0.48,588.49,587.77,1.603]
[1744895767186,0.30431951,588.48,587.77,1.603]
[1744895772393,0.30431832,588.47,587.77,1.603]
[1744895772590,0.30431832,588.48,587.77,1.603]
[1744895772793,0.30431832,588.47,587.77,1.603]
[1744895772995,0.30431832,588.48,587.77,1.603]
[1744895773195,0.30431832,588.47,587.77,1.603]
[1744895773395,0.30431832,588.46,587.77,1.603]
[1744895773597,0.30431832,588.48,587.77,1.603]
[1744895773792,0.30431832,588.47,587.77,1.603]
[1744895773996,0.30431832,588.48,587.77,1.603]
[1744895774193,0.30431832,588.47,587.77,1.603]
[1744895774391,0.30431832,588.46,587.77,1.603]
[1744895774594,0.30431832,588.48,587.77,1.603]
[1744895774896,0.30431832,588.47,587.77,1.603]
[1744895775096,0.30431832,588.48,587.77,1.603]
[1744895775293,0.30431832,588.47,587.77,1.603]
[1744895775596,0.30431832,588.46,587.77,1.603]
[1744895775797,0.30431832,588.48,587.77,1.603]
[1744895777199,0.48,588.49,587.77,1.603]
[1744895777396,0.30432268,588.48,587.77,1.603]
[1744895779500,0.33986439,588.47,587.77,1.603]
[1744895779798,0.30432268,588.46,587.77,1.603]
[1744895780700,0.64419284,588.46,587.77,1.603]
[1744895780901,0.30432268,588.45,587.77,1.603]
[1744895782100,0.33987016,588.46,587.77,1.603]
[1744895782301,0.30434224,588.44,587.77,1.603]
[1744895782495,0.30434224,588.43,587.77,1.603]
[1744895787505,0.33988172,588.44,587.77,1.603]
[1744895787805,0.30433863,588.43,587.77,1.603]
[1744895788703,0.3043358,588.42,587.77,1.603]
[1744895788903,0.3043358,588.43,587.77,1.603]
[1744895790211,0.85588172,588.44,587.77,1.603]
[1744895790509,0.30433566,588.43,587.77,1.603]
[1744895795114,0.3043492,588.42,587.77,1.603]
[1744895798019,0.33989904,588.41,587.77,1.603]
[1744895798421,0.30436796,588.4,587.77,1.603]
[1744895799223,0.3399106,588.39,587.77,1.603]
[1744895799422,0.30436796,588.38,587.77,1.603]
[1744895799723,0.33992215,588.37,587.77,1.603]
[1744895800023,0.30438501,588.36,587.77,1.603]
[1744895801422,0.33992215,588.37,587.77,1.603]
[1744895801622,0.30438803,588.36,587.77,1.603]
[1744895803125,0.33993371,588.35,587.77,1.603]
[1744895803420,0.30438803,588.34,587.77,1.603]
[1744895804024,0.33994526,588.33,587.77,1.603]
[1744895804324,0.30438803,588.32,587.77,1.603]
[1744895804517,0.64433907,588.32,587.77,1.603]
[1744895804722,0.30438803,588.31,587.77,1.603]
[1744895809226,0.3399626,588.3,587.77,1.603]
[1744895809425,0.30438803,588.29,587.77,1.603]
[1744895809722,0.33997416,588.28,587.77,1.603]
[1744895809927,0.30438803,588.27,587.77,1.603]
[1744895812533,0.33997416,588.28,587.77,1.603]
[1744895812735,0.30441549,588.26,587.77,1.603]
[1744895812936,0.30441549,588.25,587.77,1.603]
[1744895813138,0.30441549,588.27,587.77,1.603]
[1744895813436,0.30441549,588.26,587.77,1.603]
[1744895813739,0.30441549,588.25,587.77,1.603]
[1744895813937,0.30441549,588.27,587.77,1.603]
[1744895817333,0.33997416,588.28,587.77,1.603]
[1744895817532,0.30441772,588.27,587.77,1.603]
[1744895819038,0.458,588.26,587.77,1.603]
[1744895819241,0.30441772,588.25,587.77,1.603]
[1744895821539,0.458,588.26,587.77,1.603]
[1744895821843,0.30441812,588.25,587.77,1.603]
[1744895823143,0.458,588.26,587.77,1.603]
[1744895823341,0.30441563,588.25,587.77,1.603]
[1744895827849,0.458,588.26,587.77,1.603]
[1744895828046,0.3044179,588.25,587.77,1.603]
[1744895829649,0.30441946,588.24,587.77,1.603]
[1744895829843,0.30441946,588.25,587.77,1.603]
[1744895830043,0.30441946,588.24,587.77,1.603]
[1744895830242,0.30441946,588.25,587.77,1.603]
[1744895831045,0.458,588.26,587.77,1.603]
[1744895831250,0.3044374,588.25,587.77,1.603]
[1744895844461,0.3044374,588.24,587.77,1.603]
[1744895844657,0.3044374,588.27,587.77,1.603]
[1744895844857,0.33997416,588.28,587.77,1.603]
[1744895844858,0.3044374,588.26,587.77,1.603]
[1744895845156,0.3044374,588.25,587.77,1.603]
[1744895845561,0.3044374,588.24,587.77,1.603]
[1744895845755,0.3044374,588.27,587.77,1.603]
[1744895847062,0.33997416,588.28,587.77,1.603]
[1744895847264,0.452,588.26,587.77,1.603]
[1744895847458,0.3044255,588.25,587.77,1.603]
[1744895847658,0.452,588.26,587.77,1.603]
[1744895847861,0.30441941,588.25,587.77,1.603]
[1744895850266,0.452,588.26,587.77,1.603]
[1744895850467,0.30441161,588.25,587.77,1.603]
[1744895853369,0.452,588.26,587.77,1.603]
[1744895853572,0.3044195,588.25,587.77,1.603]
[1744895854973,0.452,588.26,587.77,1.603]
[1744895855173,0.30442273,588.24,587.77,1.603]
[1744895855372,0.30442273,588.23,587.77,1.603]
[1744895855568,0.30442273,588.25,587.77,1.027]
[1744895855873,0.30442273,588.25,587.2,0.2960669]
[1744895856574,0.452,588.26,587.2,0.2960669]
[1744895856873,0.30442579,588.25,587.2,0.2960669]
[1744895857974,0.30442579,588.25,587.21,0.665]
[1744895858573,0.30442579,588.25,587.22,0.988]
[1744895861274,0.452,588.26,587.22,0.988]
[1744895861474,0.30442745,588.25,587.22,0.988]
[1744895867677,0.452,588.26,587.22,0.988]
[1744895867884,0.30441521,588.25,587.22,0.988]
[1744895870887,0.452,588.26,587.22,0.988]
[1744895871185,0.30441396,588.25,587.22,0.988]
[1744895875491,0.30441396,588.24,587.22,0.988]
[1744895875694,0.30441396,588.24,587.22,0.494]
[1744895875990,0.30441396,588.23,587.22,0.494]
[1744895876191,0.30441396,588.27,587.22,0.494]
[1744895876392,0.30441396,588.26,587.22,0.494]
[1744895876589,0.30441396,588.27,587.22,0.494]
[1744895876891,0.30441396,588.26,587.22,0.494]
[1744895877090,0.30441396,588.25,587.22,0.494]
[1744895877291,0.30440085,588.24,587.22,0.494]
[1744895877485,0.30440085,588.27,587.22,0.494]
[1744895877684,0.33997416,588.28,587.22,0.494]
[1744895877986,0.30440085,588.27,587.22,0.494]
[1744895878493,0.30440085,588.27,587.23,0.445]
[1744895879089,0.61,588.26,587.23,0.445]
[1744895879285,0.30440085,588.25,587.24,0.49]
[1744895881494,0.61,588.26,587.24,0.49]
[1744895888199,0.30438474,588.25,587.24,0.49]
[1744895891004,0.61,588.26,587.24,0.49]
[1744895891302,0.30438711,588.25,587.24,0.49]
[1744895891599,0.30438711,588.24,587.24,0.49]
[1744895891798,0.30438711,588.27,587.24,0.49]
[1744895892003,0.30438711,588.26,587.24,0.49]
[1744895892302,0.30438711,588.27,587.24,0.49]
[1744895892502,0.30438711,588.25,587.24,0.49]
[1744895892708,0.30438711,588.24,587.24,0.49]
[1744895892903,0.30438711,588.23,587.24,0.49]
[1744895893102,0.30438711,588.27,587.24,0.49]
[1744895893302,0.30438711,588.26,587.24,0.49]
[1744895893503,0.30438711,588.27,587.24,0.49]
[1744895893706,0.30438711,588.26,587.24,0.49]
[1744895893903,0.74238711,588.26,587.24,0.49]
[1744895894103,0.30438711,588.25,587.24,0.49]
[1744895894307,0.438,588.26,587.24,0.49]
[1744895894504,0.30438709,588.25,587.24,0.49]
[1744895902415,0.438,588.26,587.24,0.49]
[1744895902619,0.30438687,588.25,587.24,0.49]
[1744895905418,0.30438687,588.25,587.23,0.74112233]
[1744895906515,0.438,588.26,587.23,0.74112233]
[1744895906720,0.30445452,588.25,587.23,0.74112233]
[1744895906921,0.30445452,588.25,587.23,0.445]
[1744895907323,0.438,588.26,587.23,0.445]
[1744895907523,0.64448496,588.25,587.23,0.445]
[1744895907820,0.64449074,588.24,587.23,0.445]
[1744895908021,0.30448918,588.23,587.23,0.445]
[1744895908222,0.30448918,588.23,587.24,0.589]
[1744895910523,0.34000884,588.22,587.24,0.589]
[1744895910717,0.30450319,588.21,587.24,0.589]
[1744895910918,0.3400204,588.2,587.24,0.589]
[1744895911223,0.30450319,588.19,587.24,0.589]
[1744895911523,0.34003196,588.18,587.24,0.589]
[1744895911724,0.30450319,588.17,587.24,0.589]
[1744895912925,0.34004352,588.16,587.24,0.589]
[1744895913126,0.30450319,588.15,587.24,0.589]
[1744895913425,0.34005508,588.14,587.24,0.589]
[1744895913627,0.30450319,588.13,587.24,0.589]
[1744895913827,0.34006665,588.12,587.24,0.589]
[1744895914123,0.30450319,588.11,587.24,0.589]
[1744895914323,0.64457562,588.11,587.24,0.589]
[1744895914528,0.30450319,588.1,587.24,0.589]
[1744895914826,0.340084,588.09,587.24,0.589]
[1744895915026,0.30450319,588.08,587.24,0.589]
[1744895915219,0.34009556,588.07,587.24,0.589]
[1744895915421,0.30450319,588.06,587.24,0.589]
[1744895915722,0.64460454,588.06,587.24,0.589]
[1744895915921,0.30450319,588.05,587.24,0.589]
[1744895917127,0.34010135,588.06,587.24,0.589]
[1744895917329,0.30457081,588.05,587.24,0.589]
[1744895918826,0.34010135,588.06,587.24,0.589]
[1744895920330,0.34010135,588.06,587.25,0.475]
[1744895922631,0.30444916,588.05,587.25,0.475]
[1744895923731,0.34010135,588.06,587.25,0.475]
[1744895924128,0.30444718,588.05,587.25,0.475]
[1744895925231,0.42,588.04,587.25,0.475]
[1744895929836,0.42,588.04,587.26,0.504]
[1744895933542,0.42,588.04,587.27,0.608]
[1744895935141,0.42,588.04,587.27,1.158]
[1744895938546,0.29597122,588.47,587.27,1.158]
[1744895938746,0.64424446,588.46,587.27,1.158]
[1744895939050,0.64425024,588.45,587.27,1.158]
[1744895939247,0.64425602,588.44,587.27,1.158]
[1744895939548,0.64426179,588.43,587.27,1.158]
[1744895939741,0.33988749,588.43,587.27,1.158]
[1744895939948,0.30437105,588.42,587.27,1.158]
[1744895941645,0.611,588.41,587.27,1.158]
[1744895941850,0.30437105,588.4,587.27,1.158]
[1744895942447,0.611,588.41,587.27,1.158]
[1744895942652,0.30436398,588.4,587.27,1.158]
[1744895942853,0.30436398,588.4,587.27,1.49855885]
[1744895943054,0.30436398,588.4,587.28,0.34055305]
[1744895943852,0.611,588.41,587.28,0.34055305]
[1744895944052,0.30433927,588.4,587.28,0.34055305]
[1744895945655,0.611,588.41,587.28,0.34055305]
[1744895945850,0.30434472,588.4,587.28,0.34055305]
[1744895949157,0.30434472,588.4,587.29,0.31267791]
[1744895949357,0.30434472,588.4,587.29,0.65322516]
[1744895949657,0.30434472,588.4,587.29,0.34054725]
[1744895950960,0.30434472,588.4,587.3,0.31267734]
[1744895951158,0.30434472,588.4,587.29,0.34054725]
[1744895951355,0.30434472,588.4,587.3,0.31267626]
[1744895954859,0.30434472,588.4,587.31,0.34053566]
[1744895955159,0.30434472,588.4,587.32,0.31267626]
[1744895956756,0.30434472,588.4,587.31,0.34053566]
[1744895956961,0.30434472,588.4,587.32,0.31263773]
[1744895957157,0.33988749,588.43,587.31,0.34053566]
[1744895957353,0.30429942,588.42,587.32,0.31264189]
[1744895957660,0.30429942,588.42,587.33,0.34052406]
[1744895958360,0.30429942,588.42,587.34,0.3126426]
[1744895959365,0.4,588.41,587.34,0.3126426]
[1744895959567,0.30429942,588.4,587.34,0.3126426]
[1744895959967,0.30429942,588.4,587.35,0.546]
[1744895960160,0.30429942,588.4,587.36,0.3126426]
[1744895960762,0.30429942,588.4,587.37,0.581]
[1744895960965,0.30429942,588.4,587.38,0.3126426]
[1744895962373,0.30429942,588.4,587.37,0.581]
[1744895963474,0.30429942,588.4,587.38,0.31264305]
[1744895964073,0.30429942,588.4,587.37,0.581]
[1744895964275,0.30429942,588.4,587.38,0.31264333]
[1744895966579,0.4,588.41,587.37,0.581]
[1744895966779,0.30430382,588.4,587.38,0.31264628]
[1744895968081,0.4,588.41,587.37,0.581]
[1744895968473,0.30430087,588.4,587.38,0.31264332]
[1744895976587,0.495,588.39,587.38,0.31264332]
[1744895987197,0.495,588.39,587.39,0.559]
[1744895988997,0.30430087,588.38,587.39,0.559]
[1744896004102,0.30430087,588.38,587.4,0.34048348]
[1744896006400,0.556,588.37,587.4,0.34048348]
[1744896017017,0.556,588.37,587.4,0.94348348]
[1744896017716,0.556,588.37,587.4,1.47448348]
[1744896020824,0.556,588.37,587.4,2.11648348]
[1744896028330,0.30430087,588.38,587.4,2.11648348]
[1744896030822,0.55,588.37,587.4,2.11648348]
[1744896043834,0.55,588.37,587.4,1.51348348]
[1744896047633,0.55,588.37,587.4,2.09348348]
[1744896049332,0.55,588.37,587.41,0.31257751]
[1744896049630,0.55,588.37,587.42,0.34047189]
[1744896050733,0.55,588.37,587.43,0.3125671]
[1744896051735,0.55,588.37,587.44,0.3404603]
[1744896051934,0.55,588.37,587.45,0.3125671]
[1744896052837,0.55,588.37,587.46,0.34044871]
[1744896053040,0.29598506,588.8,587.47,0.3125671]
[1744896053232,0.29598506,588.8,587.48,0.34043712]
[1744896053233,0.6438684,588.79,587.48,0.34043712]
[1744896053437,0.30418872,588.78,587.49,0.3125671]
[1744896053937,0.33969122,588.77,587.5,0.34042553]
[1744896054139,0.30418377,588.76,587.51,0.31252573]
[1744896054440,0.30418377,588.76,587.52,0.34041394]
[1744896054635,0.30418377,588.76,587.53,0.31252573]
[1744896054840,0.30418377,588.76,587.54,0.34040235]
[1744896055138,0.64388076,588.76,587.55,0.31252573]
[1744896055340,0.30418377,588.75,587.55,0.31252573]
[1744896056638,0.583,588.74,587.55,0.31252573]
[1744896056843,0.30418377,588.73,587.55,0.31252573]
[1744896058442,0.30418377,588.73,587.54,0.34040235]
[1744896058643,0.30419393,588.72,587.54,0.34040235]
[1744896058936,0.30419393,588.71,587.54,0.34040235]
[1744896059140,0.30419393,588.73,587.54,0.34040235]
[1744896060242,0.30419136,588.72,587.54,0.34040235]
[1744896060644,0.30419136,588.73,587.54,0.34040235]
[1744896060839,0.30419136,588.72,587.54,0.34040235]
[1744896061045,0.30419136,588.73,587.54,0.34040235]
[1744896061344,0.30419136,588.72,587.54,0.34040235]
[1744896061546,0.30419136,588.73,587.54,0.34040235]
[1744896061744,0.30419136,588.72,587.55,0.31252021]
[1744896061945,0.30419136,588.73,587.55,0.31252021]
[1744896062145,0.30419136,588.71,587.55,0.31252021]
[1744896062346,0.30419136,588.7,587.55,0.31252021]
[1744896062847,0.30419136,588.73,587.55,0.31252021]
[1744896063048,0.30419136,588.72,587.55,0.31252021]
[1744896063248,0.30419136,588.73,587.55,0.31252021]
[1744896063447,0.30419136,588.72,587.55,0.31252021]
[1744896063751,0.30419136,588.71,587.54,0.34040235]
[1744896063946,0.30419136,588.73,587.54,0.34040235]
[1744896065747,0.30418036,588.72,587.54,0.34040235]
[1744896065950,0.583,588.74,587.54,0.34040235]
[1744896066146,0.30418235,588.71,587.54,0.34040235]
[1744896066351,0.583,588.74,587.54,0.34040235]
[1744896066352,0.30418235,588.73,587.54,0.34040235]
[1744896066551,0.30418235,588.7,587.54,0.34040235]
[1744896066755,0.30418235,588.72,587.54,0.34040235]
[1744896066955,0.30418235,588.71,587.54,0.34040235]
[1744896067151,0.30418235,588.73,587.54,0.34040235]
[1744896067356,0.30418235,588.7,587.54,0.34040235]
[1744896067552,0.30418235,588.72,587.54,0.34040235]
[1744896067755,0.30418235,588.71,587.54,0.34040235]
[1744896067955,0.30418235,588.7,587.54,0.34040235]
[1744896068257,0.30418235,588.73,587.55,0.31252431]
[1744896068455,0.30418235,588.69,587.55,0.31252431]
[1744896068654,0.30418235,588.68,587.55,0.31252431]
[1744896068855,0.30418173,588.67,587.54,0.34040235]
[1744896069056,0.30418173,588.66,587.55,0.31252366]
[1744896069254,0.30418173,588.73,587.55,0.31252366]
[1744896069457,0.30418173,588.65,587.55,0.31252366]
[1744896069654,0.30418173,588.64,587.55,0.31252366]
[1744896069956,0.30418173,588.73,587.55,0.31252366]
[1744896070160,0.30418173,588.72,587.55,0.31252366]
[1744896070357,0.30418173,588.73,587.55,0.31252366]
[1744896070572,0.30418173,588.72,587.55,0.31252366]
[1744896070764,0.30418173,588.71,587.55,0.31252366]
[1744896071058,0.30418173,588.7,587.55,0.31252366]
[1744896071357,0.30418173,588.75,587.55,0.31252366]
[1744896071557,0.30418173,588.74,587.55,0.31252366]
[1744896071757,0.30418173,588.75,587.55,0.31252366]
[1744896071956,0.30418265,588.74,587.56,0.31252459]
[1744896072359,0.30418265,588.73,587.57,0.31252459]
[1744896072658,0.30418265,588.75,587.55,0.589]
[1744896072860,0.30418265,588.72,587.55,0.589]
[1744896073052,0.30418265,588.71,587.56,0.31252269]
[1744896073359,0.30418265,588.75,587.56,0.31252269]
[1744896073559,0.30418265,588.7,587.56,0.31252269]
[1744896073855,0.30418265,588.69,587.56,0.31252269]
[1744896074058,0.30418265,588.75,587.56,0.31252269]
[1744896074259,0.581,588.69,587.56,0.31252269]
[1744896074458,0.30418265,588.68,587.56,0.31252269]
[1744896076554,0.30420236,588.67,587.57,0.31254436]
[1744896076754,0.30420236,588.68,587.56,0.31254436]
[1744896076956,0.30420236,588.67,587.58,0.31254436]
[1744896077155,0.30420236,588.68,587.56,0.31254436]
[1744896077356,0.30420236,588.67,587.55,0.88493221]
[1744896077561,0.30420236,588.68,587.56,0.31254555]
[1744896077761,0.30420236,588.67,587.56,0.31254555]
[1744896077958,0.30420236,588.68,587.55,0.589]
[1744896079263,0.30420236,588.68,587.55,0.88494605]
[1744896080963,0.30420236,588.68,587.55,0.589]
[1744896081359,0.30420236,588.68,587.55,0.88494731]
[1744896083968,0.30420236,588.68,587.55,1.064]
[1744896084169,0.30420353,588.67,587.55,1.064]
[1744896084366,0.30420353,588.68,587.55,1.35994982]
[1744896084570,0.30420353,588.67,587.55,1.35994982]
[1744896084770,0.30420353,588.68,587.55,1.35994982]
[1744896085070,0.30420353,588.67,587.55,1.35994982]
[1744896085271,0.30420353,588.68,587.55,1.35994982]
[1744896085570,0.30420353,588.67,587.55,1.35994982]
[1744896085871,0.30420353,588.66,587.55,1.35994982]
[1744896086065,0.30420353,588.68,587.55,1.35994982]
[1744896086268,0.30420353,588.67,587.55,1.35994982]
[1744896086465,0.30420353,588.68,587.55,1.35994982]
[1744896086670,0.30420353,588.67,587.55,1.35994982]
[1744896086971,0.30420353,588.66,587.55,1.064]
[1744896087171,0.30420353,588.68,587.55,1.064]
[1744896087371,0.30420353,588.67,587.55,1.064]
[1744896087572,0.30420353,588.68,587.55,1.064]
[1744896087772,0.30420353,588.67,587.55,1.064]
[1744896087973,0.30420353,588.68,587.55,1.064]
[1744896088166,0.30420353,588.67,587.55,1.064]
[1744896088370,0.30420353,588.67,587.55,1.35994982]
[1744896088572,0.30420353,588.66,587.55,1.35994982]
[1744896088868,0.30420353,588.65,587.55,1.35994982]
[1744896089074,0.30420353,588.64,587.55,1.35994982]
[1744896089371,0.30420353,588.63,587.55,1.35994982]
[1744896089572,0.30420353,588.68,587.55,1.35994982]
[1744896089769,0.30420353,588.67,587.55,1.35994982]
[1744896089975,0.30420353,588.68,587.55,1.064]
[1744896090274,0.30420353,588.66,587.55,1.064]
[1744896090473,0.30420353,588.65,587.55,1.064]
[1744896090673,0.30420353,588.68,587.55,1.064]
[1744896091373,0.60015335,588.75,587.55,1.35994982]
[1744896091572,0.64391206,588.74,587.55,1.35994982]
[1744896091773,0.64391783,588.73,587.55,1.35994982]
[1744896091972,0.64392359,588.72,587.55,1.35994982]
[1744896092173,0.64392936,588.71,587.55,1.35994982]
[1744896092374,0.30420352,588.7,587.55,1.35994982]
[1744896093074,0.30420352,588.7,587.55,1.064]
[1744896094273,0.30420352,588.7,587.55,1.35994731]
[1744896094474,0.95620352,588.7,587.55,1.35994731]
[1744896094675,0.30420352,588.69,587.55,1.35994731]
[1744896094975,0.652,588.7,587.55,1.35994731]
[1744896095176,0.30420353,588.69,587.55,1.35994731]
[1744896095976,0.30420353,588.69,587.55,1.064]
[1744896096178,0.30420353,588.69,587.56,0.31254449]
[1744896096475,0.652,588.7,587.55,0.589]
[1744896096676,0.30420232,588.69,587.55,0.589]
[1744896097273,0.30420232,588.69,587.55,0.88494982]
[1744896098781,0.30420232,588.69,587.55,1.37294982]
[1744896098980,0.30420232,588.69,587.56,0.31254558]
[1744896101083,0.652,588.7,587.55,1.37294857]
[1744896101379,0.3042032,588.69,587.56,0.31254525]
[1744896102685,0.652,588.7,587.55,1.37294857]
[1744896102885,0.30420366,588.69,587.55,1.37294857]
[1744896104188,0.652,588.7,587.55,1.37294857]
[1744896104383,0.30420275,588.69,587.55,1.37294857]
[1744896104988,0.30420275,588.69,587.55,1.077]
[1744896106289,0.30420275,588.69,587.55,1.37294857]
[1744896106989,0.30420275,588.69,587.55,1.86594857]
[1744896110490,0.652,588.7,587.55,1.86594857]
[1744896110690,0.30422064,588.69,587.55,1.86594857]
[1744896110992,0.30422064,588.69,587.55,1.57]
[1744896112287,0.30422064,588.69,587.55,1.86594857]
[1744896113391,0.30422064,588.7,587.55,1.86594857]
[1744896113591,0.30422064,588.69,587.55,1.86594857]
[1744896113786,0.30422064,588.68,587.55,1.86594857]
[1744896113992,0.30422064,588.67,587.55,1.57]
[1744896114292,0.30422064,588.66,587.55,1.57]
[1744896114492,0.30422064,588.7,587.55,1.57]
[1744896114792,0.30422064,588.69,587.55,1.57]
[1744896114995,0.30422064,588.7,587.55,1.57]
[1744896115293,0.33972584,588.71,587.55,1.86594731]
[1744896115492,0.30422063,588.7,587.55,1.86594731]
[1744896116191,0.33973738,588.69,587.55,1.86594731]
[1744896116390,0.30422063,588.68,587.55,1.86594731]
[1744896116595,0.64396378,588.68,587.55,1.86594731]
[1744896116794,0.30422063,588.67,587.55,1.86594731]
[1744896117088,0.30422034,588.66,587.55,1.57]
[1744896117295,0.30422034,588.67,587.55,1.86595863]
[1744896118487,0.30422063,588.66,587.55,1.86595863]
[1744896118692,0.30422063,588.67,587.55,1.86595863]
[1744896118988,0.30422063,588.66,587.55,1.86595863]
[1744896119189,0.30422063,588.67,587.55,1.86595863]
[1744896119389,0.30422063,588.66,587.55,1.86595863]
[1744896119595,0.30422063,588.67,587.55,1.86595863]
[1744896119994,0.30422063,588.67,587.55,1.57]
[1744896120390,0.30422063,588.67,587.55,1.86595863]
[1744896121189,0.33974315,588.68,587.55,1.86595863]
[1744896121391,0.30422063,588.67,587.55,1.86595863]